Posting Date,Expenditure Area,Supplier Name,Net Amount,Expense Type,Reason for Expense 
11-Jan-19,Culture & Environment Services,Rns Publications,497.50,Advertising/Publicity,Advertising in Bereavement pack
25-Jan-19,Culture & Environment Services,Rns Publications,497.50,Advertising/Publicity,2019 final fee for advertising
24-Jan-19,Culture & Environment Services,Suffolk County Council,70.00,Advertising/Publicity,Cherry Picker highway licence to hang and remove banner
21-Jan-19,Culture & Environment Services,Amz*larissa & Co,-10.73,Capital Expenditure,Chicken wire for tree guard cages at Green Cem site
16-Jan-19,Culture & Environment Services,Kent Blaxill And C,719.92,Capital Expenditure,CP - Chippings - Millennium Works
17-Jan-19,Culture & Environment Services,Lumberjacks,383.20,Capital Expenditure,Tree stakes for tree guard structures at Green Cem. project
31-Jan-19,Culture & Environment Services,Lumberjacks,29.98,Capital Expenditure,Rabbit wire to tree guards
31-Jan-19,Culture & Environment Services,Screwfix Direct,23.54,Capital Expenditure,Screws fr Tree Guard structures
14-Jan-19,Culture & Environment Services,Asda Stores 4278,56.67,Catering/Beverages,Meeting Catering
21-Jan-19,Culture & Environment Services,Asda Stores 4278,7.97,Catering/Beverages,Lemons & Limes
24-Dec-18,Culture & Environment Services,Asda Superstore,56.87,Catering/Beverages,Catering - Recharge
11-Jan-19,Culture & Environment Services,Cater4you.Co.Uk,54.63,Catering/Beverages,Sandwiches trays for buffets
23-Jan-19,Culture & Environment Services,Fcc Recycling,75.13,Catering/Beverages,2 X drench FRIDGES DUMPED
17-Dec-18,Culture & Environment Services,Makro Self Service Ipswic,160.51,Catering/Beverages,Additional Stock
21-Dec-18,Culture & Environment Services,Makro Self Service Ipswic,162.44,Catering/Beverages,Additional Stock
31-Dec-18,Culture & Environment Services,Makro Self Service Ipswic,135.29,Catering/Beverages,Additional Stock
24-Jan-19,Culture & Environment Services,Makro Self Service Ipswic,120.02,Catering/Beverages,Additional Stock
23-Jan-19,Culture & Environment Services,Poundland Ltd 1344,1.00,Catering/Beverages,Milk for 50+
03-Dec-18,Culture & Environment Services,Sainsburys S/mkt,172.83,Catering/Beverages,Catering Order - Recharge
24-Dec-18,Culture & Environment Services,Sainsburys S/mkts,149.32,Catering/Beverages,Catering Order - recharge
15-Jan-19,Culture & Environment Services,Sainsburys S/mkts,69.50,Catering/Beverages,Catering Order - Recharge
16-Jan-19,Culture & Environment Services,Sainsburys S/mkts,2.50,Catering/Beverages,Food for Derivco Conferece
16-Jan-19,Culture & Environment Services,Sainsburys S/mkts,5.35,Catering/Beverages,Food for conference 15/01
21-Jan-19,Culture & Environment Services,Sainsburys S/mkts,2.80,Catering/Beverages,Lemons
22-Jan-19,Culture & Environment Services,Sainsburys S/mkts,2.30,Catering/Beverages,Milk
28-Jan-19,Culture & Environment Services,Sainsburys S/mkts,7.00,Catering/Beverages,Lemons
29-Jan-19,Culture & Environment Services,Sainsburys S/mkts,3.45,Catering/Beverages,Milk
23-Jan-19,Culture & Environment Services,Shell Ranelagh 390,16.67,Catering/Beverages,DEISEL 
21-Jan-19,Culture & Environment Services,Tesco Store 2748,21.62,Catering/Beverages,"Milk, Lemons, Limes"
16-Jan-19,Culture & Environment Services,Tesco Store 3240,224.85,Catering/Beverages,Food for Conference 15.01.19
09-Jan-19,Culture & Environment Services,Waitrose Ltd,2.70,Catering/Beverages,Milk
16-Jan-19,Culture & Environment Services,Waitrose Ltd,2.72,Catering/Beverages,Food for conference 15/01
16-Jan-19,Culture & Environment Services,Waitrose Ltd,6.36,Catering/Beverages,Food for conference 15th Jan
15-Jan-19,Culture & Environment Services,Viking,7.74,Cleaning Supplies,Mop Head and Rubber Bands
18-Jan-19,Culture & Environment Services,Www.Bunzlcleaningsuppl,51.47,Cleaning Supplies,Black bags and toilet cleaner
18-Jan-19,Culture & Environment Services,Www.Cicslimited.Co.Uk,26.57,Cleaning Supplies,New floor mop
30-Jan-19,Culture & Environment Services,Anchor Safety Llp,53.25,Clothing / Uniform & Laundry,Oversize work trousers
17-Jan-19,Culture & Environment Services,Fr Jones And Son Ltd,11.00,Clothing / Uniform & Laundry,Arb boots - Lregon Waipoua - Seller input wrong price
08-Jan-19,Culture & Environment Services,Johnsons,16.00,Clothing / Uniform & Laundry,suit - Dry Clean
03-Dec-18,Culture & Environment Services,Paypal,216.62,Clothing / Uniform & Laundry,PPE
03-Jan-19,Culture & Environment Services,Paypal,33.33,Clothing / Uniform & Laundry,Service Aprons
10-Jan-19,Culture & Environment Services,Paypal,211.72,Clothing / Uniform & Laundry,Specialist wet boots for the Graffiti team
07-Jan-19,Culture & Environment Services,Screwfix Ipswich Ransomes,29.15,Clothing / Uniform & Laundry,Dungarees & gloves - CLOTHING & UNIFORM - Landscape Team
21-Jan-19,Culture & Environment Services,Screwfix Ipswich Ransomes,-14.16,Clothing / Uniform & Laundry,Refund for dungarees - Landscape Team
09-Jan-19,Culture & Environment Services,Viking,22.89,Computer Consumables and other Minor IT costs,wireless keyboard
18-Jan-19,Culture & Environment Services,Amzn Mktp Uk,10.73,Development & Maintenance of Natural Areas,Native mixed Tree species for Planning condition - Albany
23-Jan-19,Culture & Environment Services,Botanica Plant Collectio,219.45,Development & Maintenance of Natural Areas,Mixed Native 1+1 trees for planning cond. - The Albany
24-Jan-19,Culture & Environment Services,Clarke Fencing Ltd,468.52,Development & Maintenance of Natural Areas,Materials for fencing at Braziers Meadow/A14
25-Jan-19,Culture & Environment Services,Nhbs Ltd,119.57,Development & Maintenance of Natural Areas,Kestrel Nest Boxes: Bixley Heath
11-Jan-19,Culture & Environment Services,Shrubland Woodland Produc,36.95,Development & Maintenance of Natural Areas,Timber for OCP
29-Jan-19,Culture & Environment Services,Amazon.Co.Uk,16.24,Direct Transport Costs,combination key cabinet
07-Jan-19,Culture & Environment Services,Amzn Mktp Uk,33.25,Direct Transport Costs,tablet cables
07-Jan-19,Culture & Environment Services,Amzn Mktp Uk,49.92,Direct Transport Costs,wifi equipment
14-Jan-19,Culture & Environment Services,Amzn Mktp Uk,165.00,Direct Transport Costs,Samsung tablet
22-Jan-19,Culture & Environment Services,Amzn Mktp Uk,10.32,Direct Transport Costs,mini tool kit set
28-Jan-19,Culture & Environment Services,Amzn Mktp Uk,2.73,Direct Transport Costs,memory stick
28-Jan-19,Culture & Environment Services,Amzn Mktp Uk,3.87,Direct Transport Costs,memory stick
28-Jan-19,Culture & Environment Services,Amzn Mktp Uk,46.28,Direct Transport Costs,Ice scrapers for Gipping house pool cars
29-Jan-19,Culture & Environment Services,Amzn Mktp Uk,5.82,Direct Transport Costs,sd card
18-Jan-19,Culture & Environment Services,Asda Petrol 4278,60.03,Direct Transport Costs,58.24l diesel DY56 VKD
30-Jan-19,Culture & Environment Services,Britishbins,281.00,Direct Transport Costs,5x tow bar & 10x directional locks
14-Jan-19,Culture & Environment Services,Dvla Vehicle Tax,167.50,Direct Transport Costs,vehicle tax for GD67 UPZ
14-Jan-19,Culture & Environment Services,Dvla Vehicle Tax,167.50,Direct Transport Costs,Vehicle tax for GD67 UPY
14-Jan-19,Culture & Environment Services,Dvla Vehicle Tax,252.50,Direct Transport Costs,Vehicle tax for AO54 FEV
14-Jan-19,Culture & Environment Services,Dvla Vehicle Tax,252.50,Direct Transport Costs,vehicle tax for AP06 VLA
14-Jan-19,Culture & Environment Services,Dvla Vehicle Tax,652.50,Direct Transport Costs,Vehicle tax for AY09 XJN
14-Jan-19,Culture & Environment Services,Dvla Vehicle Tax,652.50,Direct Transport Costs,Vehicle tax for CK67 TSO
22-Jan-19,Culture & Environment Services,Dvla Vehicle Tax,252.50,Direct Transport Costs,Vehicle tax for AV63 XGT
18-Jan-19,Culture & Environment Services,Ram-Mount.Co.Uk,30.78,Direct Transport Costs,tablet holder
09-Jan-19,Culture & Environment Services,Wilco Motor Spares Ltd,2.48,Direct Transport Costs,Fuses for Ford Ranger - VEHICLE EXPE
28-Jan-19,Culture & Environment Services,Www.Fta.Co.Uk,29.95,Direct Transport Costs,steering wheel covers
24-Jan-19,Culture & Environment Services,Ups Ltd,3.00,Equipment - Repairs,Courier to send Lighting Desk away for repair/service
25-Jan-19,Culture & Environment Services,Ups Ltd,30.90,Equipment - Repairs,Courier to send Lighting Desk away for repair/service
08-Jan-19,Culture & Environment Services,Ajproductscouk,990.00,Equipment / Furniture / Materials,Matting for Poolside area
08-Jan-19,Culture & Environment Services,Amz*lunarorganics,-8.71,Equipment / Furniture / Materials,refund for 2019 office wall calender
30-Jan-19,Culture & Environment Services,Amz*safetysigns4less,26.95,Equipment / Furniture / Materials,Fire Door Keep Shut Signs x 10
18-Dec-18,Culture & Environment Services,Amzn Mktp Uk,44.96,Equipment / Furniture / Materials,Table clothes - Christmas Parties
03-Jan-19,Culture & Environment Services,Amzn Mktp Uk,12.03,Equipment / Furniture / Materials,office 2019 wall calendar including delivery
09-Jan-19,Culture & Environment Services,Amzn Mktp Uk,14.36,Equipment / Furniture / Materials,Waste Services office equipement
09-Jan-19,Culture & Environment Services,Amzn Mktp Uk,26.87,Equipment / Furniture / Materials,Waste Services office equipement
14-Jan-19,Culture & Environment Services,Amzn Mktp Uk,19.16,Equipment / Furniture / Materials,Hand warmers
18-Jan-19,Culture & Environment Services,Amzn Mktp Uk,24.16,Equipment / Furniture / Materials,2 Galvanised steel bins.
18-Jan-19,Culture & Environment Services,Amzn Mktp Uk,23.71,Equipment / Furniture / Materials,Pourers and optics
25-Jan-19,Culture & Environment Services,Amzn Mktp Uk,28.27,Equipment / Furniture / Materials,personal security alarms for TIC team
29-Jan-19,Culture & Environment Services,Amzn Mktp Uk,129.12,Equipment / Furniture / Materials,5 x A1 poster frames
31-Jan-19,Culture & Environment Services,Amzn Mktp Uk,6.91,Equipment / Furniture / Materials,Stop Watch x 3
24-Jan-19,Culture & Environment Services,Argos Ltd,24.99,Equipment / Furniture / Materials,Heater for Waste office
30-Jan-19,Culture & Environment Services,Argos Ltd,83.30,Equipment / Furniture / Materials,Ironing Boards & Kettles for dressing rooms.
24-Jan-19,Culture & Environment Services,Asda Stores 4278,33.27,Equipment / Furniture / Materials,2 X Kettles - Service Area
09-Jan-19,Culture & Environment Services,B & M Retail,7.57,Equipment / Furniture / Materials,bit set and caulk
31-Jan-19,Culture & Environment Services,B & M Retail,4.16,Equipment / Furniture / Materials,Washing powder for FOH shirts
23-Jan-19,Culture & Environment Services,B & Q 1315,14.00,Equipment / Furniture / Materials,HDMI cable for laptop and projector
23-Jan-19,Culture & Environment Services,B & Q 1315,53.83,Equipment / Furniture / Materials,materials for boxing in
18-Jan-19,Culture & Environment Services,Battery Station,10.75,Equipment / Furniture / Materials,rechargeable batteries and charger
03-Jan-19,Culture & Environment Services,Eastern Auto Spares Ip,10.82,Equipment / Furniture / Materials,Oil for generator - PLAY INSPECTOR - Christchurch Hub
23-Nov-18,Culture & Environment Services,Fr Jones And Son Ltd,152.44,Equipment / Furniture / Materials,"Tools: slings, canthooks, sharpening stone"
03-Jan-19,Culture & Environment Services,Hertfordshire County C,37.40,Equipment / Furniture / Materials,first aid kit bags x2
30-Jan-19,Culture & Environment Services,Hughes Tv & Audio,112.48,Equipment / Furniture / Materials,Microwave and Irons for Catering/Wardrobe
21-Jan-19,Culture & Environment Services,Iwood Timber Ltd,"4,166.67",Equipment / Furniture / Materials,Pergola for the Millennium Cemetery
22-Jan-19,Culture & Environment Services,Iwood Timber Ltd,"2,083.33",Equipment / Furniture / Materials,Pergola for Millennium Cemetery
22-Jan-19,Culture & Environment Services,Iwood Timber Ltd,"2,195.60",Equipment / Furniture / Materials,Pergola for Millennium Cemetery
18-Jan-19,Culture & Environment Services,Jayar Car Parts,16.71,Equipment / Furniture / Materials,Vehicle Winter items - deicer etc
30-Jan-19,Culture & Environment Services,Leisureteq,350.00,Equipment / Furniture / Materials,acid tank and dosing parts
30-Jan-19,Culture & Environment Services,Leisureteq,574.00,Equipment / Furniture / Materials,dosing spares and hose
02-Jan-19,Culture & Environment Services,Majors News,1.49,Equipment / Furniture / Materials,Mayo for rap party
03-Jan-19,Culture & Environment Services,Map Uk,16.30,Equipment / Furniture / Materials,London Road allotments -new padlock due to emergency cut off
31-Jan-19,Culture & Environment Services,Mde Electrical Supplie,4.95,Equipment / Furniture / Materials,cable ties for general office and equipment use x100
31-Jan-19,Culture & Environment Services,Mde Electrical Supplie,54.40,Equipment / Furniture / Materials,tube lights for centre x32
18-Jan-19,Culture & Environment Services,Net World Sports,36.57,Equipment / Furniture / Materials,AWA Pitch number plates for fence
04-Jan-19,Culture & Environment Services,Notcutts Garden Ce,203.33,Equipment / Furniture / Materials,Plants for CCP - Christchurch Park hub
11-Dec-18,Culture & Environment Services,Paypal,163.33,Equipment / Furniture / Materials,Themed clothing - Corn Ex Christmas Parties
14-Jan-19,Culture & Environment Services,Paypal,136.67,Equipment / Furniture / Materials,Seating - Circle Lounge
24-Jan-19,Culture & Environment Services,Paypal,2.49,Equipment / Furniture / Materials,Curtain hooks for council chamber
28-Jan-19,Culture & Environment Services,Paypal,3.99,Equipment / Furniture / Materials,H&S Signage for electrical cupboards
31-Jan-19,Culture & Environment Services,Plumbing For Less,110.25,Equipment / Furniture / Materials,replacement taps
21-Jan-19,Culture & Environment Services,Post Office Counter,2.87,Equipment / Furniture / Materials,Posted laptop charger to (Arborist Manager)
23-Jan-19,Culture & Environment Services,Premier Farnell,103.70,Equipment / Furniture / Materials,Purchase of 16amp Splitters for moving lights & DMX Adapters
24-Jan-19,Culture & Environment Services,Premier Farnell,13.14,Equipment / Furniture / Materials,Equipment maintenance repair tape
25-Jan-19,Culture & Environment Services,Respect Green Burial,28.55,Equipment / Furniture / Materials,Baby lowering slings
17-Jan-19,Culture & Environment Services,Screwfix Dir. Ltd,46.47,Equipment / Furniture / Materials,profiles water fountain parts
25-Jan-19,Culture & Environment Services,Screwfix Dir. Ltd,18.30,Equipment / Furniture / Materials,Staples for the stage & cable ties for external banner
18-Jan-19,Culture & Environment Services,Screwfix Direct,83.17,Equipment / Furniture / Materials,plumbing repair parts
23-Jan-19,Culture & Environment Services,Screwfix Direct,50.00,Equipment / Furniture / Materials,Event Equipment for Gower Street
28-Jan-19,Culture & Environment Services,Screwfix Direct,18.15,Equipment / Furniture / Materials,PF - Respirator Filters - Crem
21-Dec-18,Culture & Environment Services,Suk Retail Ltd,25.81,Equipment / Furniture / Materials,Staple Gun and Staples
04-Jan-19,Culture & Environment Services,Swanns Nursery,290.00,Equipment / Furniture / Materials,Plants for CCP - Christchurch Park hub
07-Jan-19,Culture & Environment Services,The Ipswich Cobble,15.62,Equipment / Furniture / Materials,Keys cut
11-Jan-19,Culture & Environment Services,The Ipswich Cobble,51.67,Equipment / Furniture / Materials,Keys cut - various Cornhill keys
09-Jan-19,Culture & Environment Services,Timpson,6.67,Equipment / Furniture / Materials,Front door key 
04-Jan-19,Culture & Environment Services,Topps Tiles Ipswic,32.47,Equipment / Furniture / Materials,tile adhesive for profiles
30-Jan-19,Culture & Environment Services,Trophy Store,175.27,Equipment / Furniture / Materials,Cricket League Trophies
07-Jan-19,Culture & Environment Services,Tudor Environmental,"1,965.87",Equipment / Furniture / Materials,Chainsaw
03-Jan-19,Culture & Environment Services,Wh Smith,0.91,Equipment / Furniture / Materials,Gold gel pen for panto programme
07-Jan-19,Culture & Environment Services,Wh Smith,4.99,Equipment / Furniture / Materials,FoH Diary
08-Jan-19,Culture & Environment Services,Whittan Ind,40.64,Equipment / Furniture / Materials,locker parts
16-Jan-19,Culture & Environment Services,Wickes Building,126.29,Equipment / Furniture / Materials,Purchase of paint and tools for stage maintenance
08-Jan-19,Culture & Environment Services,Wickes Ipswich,51.24,Equipment / Furniture / Materials,"wheelbarrow, mallet, buckets etc for masonry team"
21-Jan-19,Culture & Environment Services,Wickes Ipswich,21.66,Equipment / Furniture / Materials,Purchase of paint for stage maintenance.
21-Jan-19,Culture & Environment Services,Wickes Martlesham,21.66,Equipment / Furniture / Materials,Purchase of paint for stage maintenance
09-Jan-19,Culture & Environment Services,Wilko Retail Limit,1.83,Equipment / Furniture / Materials,caulk gun
16-Jan-19,Culture & Environment Services,Www.192.Com,49.95,Equipment / Furniture / Materials,Family research token - Grave Renewals
01-Jan-19,Culture & Environment Services,Www.Ausphysio.Com,311.52,Equipment / Furniture / Materials,Pilates Equipment
18-Jan-19,Culture & Environment Services,Www.Kitlocker.Com,24.88,Equipment / Furniture / Materials,12 Corner Flags for football pitches
11-Jan-19,Culture & Environment Services,Www.Millets.Co.Uk,19.58,Equipment / Furniture / Materials,fingerless gloves
15-Jan-19,Culture & Environment Services,Www.Nisbets.Com,135.20,Equipment / Furniture / Materials,Optics and Optic Holders
17-Jan-19,Culture & Environment Services,Www.Nisbets.Com,49.50,Equipment / Furniture / Materials,Optics
28-Jan-19,Culture & Environment Services,Www.Officefurnitureonl,226.00,Equipment / Furniture / Materials,Office / Crematorium Chairs
23-Jan-19,Culture & Environment Services,Www.Powerhousedirect.C,"1,034.85",Equipment / Furniture / Materials,Replacements dumbbells and racks for Crown Pools profiles gy
08-Jan-19,Culture & Environment Services,Www.Showcomms.Co.Uk,359.51,Equipment / Furniture / Materials,10 x Motorola stud adaptors/headsets - Park Patrol
08-Jan-19,Culture & Environment Services,Mobile Mini UK Limited,78.00,Equipment Hire,Hire of storage containers for equipment.
18-Dec-18,Culture & Environment Services,Turner Tool Hire,433.27,Equipment Hire,MEWP HIRE
18-Dec-18,Culture & Environment Services,Turner Tool Hire,639.05,Equipment Hire,MEWP HIRE
16-Jan-19,Culture & Environment Services,Turner Tool Hire,"1,454.44",Equipment Hire,MEWP HIRE
17-Dec-18,Culture & Environment Services,Amzn Mktp Uk,44.12,Fixtures & Fittings,Centre Pieces - Christmas Parties
18-Dec-18,Culture & Environment Services,Amzn Mktp Uk,28.32,Fixtures & Fittings,Queuing Ropes Black - Christmas Parties
18-Dec-18,Culture & Environment Services,Amzn Mktp Uk,60.48,Fixtures & Fittings,Lighting - Christmas parties
31-Dec-18,Culture & Environment Services,Paypal,92.92,Fixtures & Fittings,Poster Frames
04-Jan-19,Culture & Environment Services,Paypal,104.17,Fixtures & Fittings,Supply and fitting of motor cable - stage lighting bar
18-Jan-19,Culture & Environment Services,Value Products Ltd,23.45,Fixtures & Fittings,No Dogs signs
18-Jan-19,Culture & Environment Services,Www.Lockshopdirect.Co.,85.33,Fixtures & Fittings,Padlocks
07-Jan-19,Culture & Environment Services,Harbro Supplies Ltd,174.65,Goods for Resale - Bereavement,masonry items for quotes
11-Jan-19,Culture & Environment Services,J K H Drainage Units L,833.33,Goods for Resale - Bereavement,Foundations (For Resale)
11-Jan-19,Culture & Environment Services,J K H Drainage Units L,"1,168.67",Goods for Resale - Bereavement,Foundations (For Resale)
18-Jan-19,Culture & Environment Services,Www.British-Gymnastics,212.50,Goods for Resale - Equipment,Trampolining badges and certificates
14-Jan-19,Culture & Environment Services,Amzn Mktp Uk,3.83,Holding A/C - General Use,VAT on Amazon Inv for Hand warmers. came through separately
11-Jan-19,Culture & Environment Services,Suffolk County Council,4.00,Holding A/C - General Use,Death certificate 
18-Jan-19,Culture & Environment Services,Suffolk County Council,3.33,Holding A/C - General Use,Death certificate 
31-Jan-19,Culture & Environment Services,Tvlicensing.Co.Uk,150.50,Licences & Other Fees,Renew T.V Licence expiring 31st January 2019
31-Jan-19,Culture & Environment Services,Amazon.Co.Uk,20.73,Materials and Supplies - Miscellaneous,10x10 no adhesive dressings used for first aid.
30-Nov-18,Culture & Environment Services,Argos Retail Group,8.32,Materials and Supplies - Miscellaneous,Keyboard 
29-Jan-19,Culture & Environment Services,B & Q 1315,7.53,Materials and Supplies - Miscellaneous,Cement - DOG BIN INSTALLATION HW - Landscape Team
29-Jan-19,Culture & Environment Services,B & Q 1315,146.00,Materials and Supplies - Miscellaneous,Paint & various materials - DECORATING RDVC - Landscape Team
30-Jan-19,Culture & Environment Services,B & Q 1315,36.39,Materials and Supplies - Miscellaneous,Paint & Polyfiller - DECORATING RDVC - Landscape Team
29-Jan-19,Culture & Environment Services,Clearance Dec Outlet,39.54,Materials and Supplies - Miscellaneous,Brushed/Rollers - DECORATING RDVC - Landscape Team
30-Jan-19,Culture & Environment Services,Clearance Dec Outlet,7.99,Materials and Supplies - Miscellaneous,Roller Kit - DECORATING RDVC - Landscape Team
10-Jan-19,Culture & Environment Services,Collier&catchpole,"1,380.00",Materials and Supplies - Miscellaneous,Salt for parks & Cemeteries
09-Jan-19,Culture & Environment Services,Cpw Locksmiths And Securi,25.37,Materials and Supplies - Miscellaneous,Allotment gate key for wastersaver & x4Holywells mess room
30-Jan-19,Culture & Environment Services,Cpw Locksmiths And Securi,30.00,Materials and Supplies - Miscellaneous,key cutting for bin stores
17-Jan-19,Culture & Environment Services,Elmers Hardware,35.41,Materials and Supplies - Miscellaneous,Hand Tools for CCP - Christchurch Park Hub
16-Jan-19,Culture & Environment Services,Fr Jones And Son Ltd,99.00,Materials and Supplies - Miscellaneous,Tree hog Extreme Waterproof chainsaw boots
24-Jan-19,Culture & Environment Services,Halfords 0393,25.00,Materials and Supplies - Miscellaneous,3.5L Jump Leads
09-Jan-19,Culture & Environment Services,Helloprint,19.94,Materials and Supplies - Miscellaneous,Car Park Sign
04-Jan-19,Culture & Environment Services,Hg Gladwell & Sons,26.90,Materials and Supplies - Miscellaneous,food for birds at hollywells as jack was of
07-Jan-19,Culture & Environment Services,Horticultural Sppls Ltd,74.41,Materials and Supplies - Miscellaneous,x2 Rake & fishblood - Items for CCP - Landscape team
30-Jan-19,Culture & Environment Services,John Parker Fixings,14.60,Materials and Supplies - Miscellaneous,Skirting - DECORATING RDVC - Landscape Team
24-Jan-19,Culture & Environment Services,Kings,4.50,Materials and Supplies - Miscellaneous,Cylinder Key
21-Dec-18,Culture & Environment Services,Lewisham Parking,7.17,Materials and Supplies - Miscellaneous,Car parking - Carford Panto
07-Jan-19,Culture & Environment Services,Lumberjacks,84.60,Materials and Supplies - Miscellaneous,Tree stakes for Cemetery
25-Jan-19,Culture & Environment Services,Lumberjacks,90.00,Materials and Supplies - Miscellaneous,75 50x50 pegs for Cemetery
24-Jan-19,Culture & Environment Services,Medisave,74.14,Materials and Supplies - Miscellaneous,Child Defib pads
11-Jan-19,Culture & Environment Services,Paypal,258.00,Materials and Supplies - Miscellaneous,Chainsaw chains x 4
10-Jan-19,Culture & Environment Services,Post Office Counter,8.97,Materials and Supplies - Miscellaneous,Postage Stamps
03-Jan-19,Culture & Environment Services,Ryman,3.12,Materials and Supplies - Miscellaneous,Marker pens
27-Dec-18,Culture & Environment Services,Sainsburys S/mkts,15.04,Materials and Supplies - Miscellaneous,Flowers for Panto Cast
28-Dec-18,Culture & Environment Services,Sainsburys S/mkts,2.21,Materials and Supplies - Miscellaneous,Milk
30-Jan-19,Culture & Environment Services,Screwfix Ipswich Ransomes,28.27,Materials and Supplies - Miscellaneous,Paint Brushes & Rollers - DECORATING RDVC - Landscape Team
04-Dec-18,Culture & Environment Services,Signs For You Ltd,24.64,Materials and Supplies - Miscellaneous,site instruction sign
08-Jan-19,Culture & Environment Services,Snappy Snaps,24.97,Materials and Supplies - Miscellaneous,Photos for Personal Licence
11-Jan-19,Culture & Environment Services,Sproughton Garden Machine,469.74,Materials and Supplies - Miscellaneous,Gr. 510.72 barmower parts & Gr. 52.97 brushcutter parts
28-Jan-19,Culture & Environment Services,Tiger J.K.(Midlands) L,6.67,Materials and Supplies - Miscellaneous,Padlocks and bottle brush
07-Jan-19,Culture & Environment Services,Tp Ipswich,90.00,Materials and Supplies - Miscellaneous,Salt for gritting
04-Jan-19,Culture & Environment Services,W J Green Limited,13.80,Materials and Supplies - Miscellaneous,Arb Machines parts.
09-Jan-19,Culture & Environment Services,Wickes Ipswich,34.47,Materials and Supplies - Miscellaneous,"Drill bits, garden wire (DM boxes), 3in1 oil & gaffer tape"
14-Jan-19,Culture & Environment Services,Wickes Ipswich,48.67,Materials and Supplies - Miscellaneous,Fork/nails/wood for Cemetery
31-Jan-19,Culture & Environment Services,Wickes Ipswich,21.66,Materials and Supplies - Miscellaneous,Dust Sheets - DECORATING RDVC - Landscape Team
07-Jan-19,Culture & Environment Services,Wilko Retail Limit,14.83,Materials and Supplies - Miscellaneous,Items for bars
28-Jan-19,Culture & Environment Services,Wilko Retail Limit,11.79,Materials and Supplies - Miscellaneous,Sugar soap/polyfilla/sponges - CCP - Landscape Team
29-Jan-19,Culture & Environment Services,Www.Toolstation.Com,36.37,Materials and Supplies - Miscellaneous,2 ply blue roll and cleaning wipes
10-Jan-19,Culture & Environment Services,Www.Tudorenvironmental,479.92,Materials and Supplies - Miscellaneous,Ecoplug Max Tree Stump Control
03-Dec-18,Culture & Environment Services,Aldi 89 776,31.55,Miscellaneous Expenses,refreshments for volunteers
03-Dec-18,Culture & Environment Services,Aldi 89 776,11.17,Miscellaneous Expenses,refreshments for volunteers
22-Jan-19,Culture & Environment Services,Asda Stores 4278,1.09,Miscellaneous Expenses,REFREshments for vols - milk
21-Jan-19,Culture & Environment Services,B & M Retail,10.01,Miscellaneous Expenses,Childrens Cancer swim group items
31-Dec-18,Culture & Environment Services,Burton Retail,128.33,Miscellaneous Expenses,Tuxedo Hire x 4
23-Jan-19,Culture & Environment Services,Cool Beanz,8.42,Miscellaneous Expenses,Meeting with Kilimanjaro & Greater Anglia
25-Jan-19,Culture & Environment Services,Cool Beanz,18.75,Miscellaneous Expenses,Meeting Refreshments - Town 102
11-Jan-19,Culture & Environment Services,Costa Coffee 43036130,16.00,Miscellaneous Expenses,Meeting Refreshments
28-Jan-19,Culture & Environment Services,Dart-Charge,4.17,Miscellaneous Expenses,Dartford Crossing Charge - Bexley
04-Jan-19,Culture & Environment Services,One Stop 2213,1.10,Miscellaneous Expenses,"4pts milk volunteers refreshments Thurs, Fri, Sat, Tues"
14-Jan-19,Culture & Environment Services,One Stop 2213,0.92,Miscellaneous Expenses,4 pts milk volunteer refreshments
15-Jan-19,Culture & Environment Services,Sainsburys S/mkt,2.92,Miscellaneous Expenses,volunteer refreshments 
17-Jan-19,Culture & Environment Services,Sainsburys S/mkt,14.95,Miscellaneous Expenses,"Refreshment Alderman Megabash: 7x4 cup-a-soups, cheese, butt"
21-Jan-19,Culture & Environment Services,Sainsburys S/mkts,1.15,Miscellaneous Expenses,Refreshments for megabash - milk
25-Jan-19,Culture & Environment Services,Sjasuplies,314.50,Miscellaneous Expenses,First Aid Box Supplies
30-Jan-19,Culture & Environment Services,The Lion Freehouse,28.83,Miscellaneous Expenses,Meeting Refreshments - Sponsorship Meeting with Hudson Group
30-Jan-19,Culture & Environment Services,The Range,1.00,Miscellaneous Expenses,Pack of 4 permanent marker pens
03-Jan-19,Culture & Environment Services,B & Q 1315,40.05,Miscellaneous Stock  - Purchases,Cement - PIPERS VALE PLAY AREA - Landscape Team
07-Jan-19,Culture & Environment Services,B & Q 1315,22.02,Miscellaneous Stock  - Purchases,Cement - Landscape Team
21-Jan-19,Culture & Environment Services,Bag Agg Ltd,30.95,Miscellaneous Stock  - Purchases,Ballast & Cement - DALES PLAY AREA - Landscape Team
31-Jan-19,Culture & Environment Services,Bag Agg Ltd,24.05,Miscellaneous Stock  - Purchases,Ballast - THE DALES PLAY AREA - Landscape Team
31-Jan-19,Culture & Environment Services,Bag Agg Ltd,24.05,Miscellaneous Stock  - Purchases,Ballast - THE DALES PLAY AREA - Landscape Team
29-Jan-19,Culture & Environment Services,Clearance Dec Outlet,8.33,Miscellaneous Stock  - Purchases,Oil based paint - SWINGS SOUTHEND - Landscape Team
10-Jan-19,Culture & Environment Services,Eoe Coop,1.46,Miscellaneous Stock  - Purchases,Rubber Gloves - Landscape Team
14-Jan-19,Culture & Environment Services,Euroloos,120.00,Miscellaneous Stock  - Purchases,Hire of a Portaloo - ASHINGDON REC - Landscape Team
08-Jan-19,Culture & Environment Services,Gb Sport & Leisure Uk,622.06,Miscellaneous Stock  - Purchases,Rubber crumb & Resin - THE DALES - Landscape Team
11-Jan-19,Culture & Environment Services,Hg Gladwell & Sons,33.62,Miscellaneous Stock  - Purchases,x3 bags of Duck Food - Christchurch Park
09-Jan-19,Culture & Environment Services,Horticultural Sppls Ltd,57.44,Miscellaneous Stock  - Purchases,Gorilla tape & Grass seeds - Landscape Team
24-Jan-19,Culture & Environment Services,Horticultural Sppls Ltd,16.50,Miscellaneous Stock  - Purchases,Ground Cover Pegs - THE DALES - Landscape Team
11-Jan-19,Culture & Environment Services,Kiln Farm Nursery,119.66,Miscellaneous Stock  - Purchases,Various plants - CROWN POOL PLANTERS - Landscape Team
04-Jan-19,Culture & Environment Services,Lumberjacks,134.82,Miscellaneous Stock  - Purchases,Posts/fence - Landscape Team
04-Jan-19,Culture & Environment Services,Machine Mart Ltd,30.98,Miscellaneous Stock  - Purchases,Inflator/whip hose
14-Jan-19,Culture & Environment Services,Premier Inn44017470,440.00,Miscellaneous Stock  - Purchases,Overnight accommodation whist working away installing play e
14-Jan-19,Culture & Environment Services,Premier Metals,230.00,Miscellaneous Stock  - Purchases,Hire of a 8yd Skip - ASHINGDON REC - Landscape Team
09-Jan-19,Culture & Environment Services,Ridgeons,11.71,Miscellaneous Stock  - Purchases,Timber & Gloves - THE DALES - Landscape Team
01-Jan-19,Culture & Environment Services,Suk Retail Ltd,18.69,Miscellaneous Stock  - Purchases,Sticky dots for the holiday wall planner
08-Jan-19,Culture & Environment Services,Toolstation Ltd,8.32,Miscellaneous Stock  - Purchases,Digging Spade - Landscape Team
08-Jan-19,Culture & Environment Services,Wickes Ipswich,4.17,Miscellaneous Stock  - Purchases,Tape measure - Landscape Team
12-Dec-18,Culture & Environment Services,Arboricultural Associa,277.50,Non Contracted_Professional Services,Arb Association Renewal
30-Jan-19,Culture & Environment Services,Dwp,464.40,Non Contracted_Professional Services,HSE Inspection Fee's at Gipping Hse
14-Jan-19,Culture & Environment Services,Dvla Vehicle Tax,142.50,Parks Vehicle Costs,Vehicle Tax for AP55 OUF
14-Jan-19,Culture & Environment Services,Dvla Vehicle Tax,252.50,Parks Vehicle Costs,Vehicle Tax for AX63 ENN
14-Jan-19,Culture & Environment Services,Dvla Vehicle Tax,252.50,Parks Vehicle Costs,Vehicle Tax for AP55 RBZ
07-Jan-19,Culture & Environment Services,Eastern Auto Spares Ip,1.79,Parks Vehicle Costs,Fuse for tail lights - VEHICLE EXPE
09-Jan-19,Culture & Environment Services,Wilco Motor Spares Ltd,1.66,Parks Vehicle Costs,Mini blade fuses - VEHICLE EXPE
14-Jan-19,Culture & Environment Services,The Post Office,3.45,Postage Costs,Postage - Plaque - ASC
21-Jan-19,Culture & Environment Services,Marshalls,30.00,Premises Costs - Miscellaneous,New bollard keys for Ipswich Market
15-Jan-19,Culture & Environment Services,Surf & Turf Instant Sh,34.96,Premises Costs - Miscellaneous,Inner legs for Youngs Fish.
28-Jan-19,Culture & Environment Services,Www.Partypacks.Co.Uk,19.24,Premises Costs - Miscellaneous,Bunting for Ipswich Market
11-Jan-19,Culture & Environment Services,Newitts.Com,84.16,Specific Campaigns / Projects expenditure,Dodgeballs
14-Jan-19,Culture & Environment Services,Amazon.Co.Uk,16.24,Stationery,combination lock key cabinet
14-Jan-19,Culture & Environment Services,Amzn Mktp Uk,41.75,Stationery,key cabinet
14-Jan-19,Culture & Environment Services,Amzn Mktp Uk,2.49,Stationery,key tags
16-Jan-19,Culture & Environment Services,Amzn Mktp Uk,9.98,Stationery,mousemat
28-Jan-19,Culture & Environment Services,Amzn Mktp Uk,8.98,Stationery,labels
31-Jan-19,Culture & Environment Services,Amzn Mktp Uk,5.61,Stationery,Permanent Marker Pens x 5
20-Dec-18,Culture & Environment Services,Paypal,9.08,Stationery,Holiday / leave planners
17-Jan-19,Culture & Environment Services,Ryman,8.32,Stationery,Kitchen Diary
21-Jan-19,Culture & Environment Services,The Works,3.33,Stationery,Punched Pockets - Christchurch Park
15-Jan-19,Culture & Environment Services,Viking,6.74,Stationery,Mop Head and Rubber Bands
23-Jan-19,Culture & Environment Services,Wh Smith,39.95,Stationery,Flipchart Markets - 6 packs of multi colours
03-Jan-19,Culture & Environment Services,Www.Banneruk.Com,8.16,Stationery,stationery order
25-Jan-19,Culture & Environment Services,Www.Banneruk.Com,22.84,Stationery,Stationary for Theatre
29-Jan-19,Culture & Environment Services,Www.Banneruk.Com,30.42,Stationery,Stationery for Waste Services
29-Jan-19,Culture & Environment Services,Www.Banneruk.Com,35.64,Stationery,Stationery for Waste Services
30-Jan-19,Culture & Environment Services,Www.Banneruk.Com,3.98,Stationery,Stationery for Waste Services
21-Dec-18,Culture & Environment Services,Www.Officeteamconnect.Co,34.73,Stationery,Diaries for staff
01-Jan-19,Culture & Environment Services,Www.Officeteamconnect.Co,7.32,Stationery,Outstanding invoice from 2016 for diaries had to be paid
22-Jan-19,Culture & Environment Services,Caffe Nero - 101,4.42,Subsistence & Conference/Seminar / Event Expenses,external meeting with head of CIMS
24-Jan-19,Culture & Environment Services,Caffe Nero - 101,4.42,Subsistence & Conference/Seminar / Event Expenses,External meeting with head of Suffolk Walking Festival
25-Jan-19,Culture & Environment Services,Caffe Nero - 101,4.92,Subsistence & Conference/Seminar / Event Expenses,external meeting with Red Rose Chain producer
31-Jan-19,Culture & Environment Services,Poundland Ltd 1719,1.67,Subsistence & Conference/Seminar / Event Expenses,Tea for Shop mo
03-Jan-19,Culture & Environment Services,Waitrose Ltd,0.74,Subsistence & Conference/Seminar / Event Expenses,Milk for Shop mo
08-Jan-19,Culture & Environment Services,Waitrose Ltd,1.54,Subsistence & Conference/Seminar / Event Expenses,Milk for Shop mo
15-Jan-19,Culture & Environment Services,Waitrose Ltd,0.96,Subsistence & Conference/Seminar / Event Expenses,Milk for Shop mo
22-Jan-19,Culture & Environment Services,Waitrose Ltd,0.96,Subsistence & Conference/Seminar / Event Expenses,Milk for Shop mo
29-Jan-19,Culture & Environment Services,Waitrose Ltd,0.96,Subsistence & Conference/Seminar / Event Expenses,Milk for Shop mo
28-Jan-19,Culture & Environment Services,Disclosure And Barring,25.00,Training Expenses,DBS check for Corn Exchange
28-Dec-18,Culture & Environment Services,Disclosure Scotland,25.00,Training Expenses,Disclosure fee for Personal Licence Course
14-Jan-19,Culture & Environment Services,Disclosure Scotland,20.83,Training Expenses,Disclosure 
06-Dec-18,Culture & Environment Services,Honest Burgers Hammersmit,14.17,Training Expenses,Lunch leading learning course
14-Jan-19,Culture & Environment Services,Disclosure Scotland,20.83,Training/Courses Running Costs,Disclosure 
08-Jan-19,Culture & Environment Services,Www.Lifesaversdirect,276.67,Training/Courses Running Costs,First Aid At Work Candidate Packs
24-Jan-19,Culture & Environment Services,Www.Lifesaversdirect,191.67,Training/Courses Running Costs,RLSS Approved Training Centre
28-Jan-19,Culture & Environment Services,Www.Lifesaversdirect,237.08,Training/Courses Running Costs,Antiseptic Wipes and Training Books
24-Jan-19,Culture & Environment Services,Mpd - Ipswich 03,5.98,Transport Costs - Miscellaneous,De-ionised water for vehicle
03-Jan-19,Culture & Environment Services,Trainline,49.50,Use Of Public Transport,"Travel for training. needs moving to 2560 tra001, same code"
25-Jan-19,Culture & Environment Services,Trainline,98.40,Use Of Public Transport,RW travel to London return ticket - code to FAAA
17-Jan-19,Development,Safetyshop,7.49,Capital Expenditure,Cable ties for labelling Granite
22-Jan-19,Development,Safetyshop,52.99,Capital Expenditure,Labelling accessories for spare granite for Cornhill
29-Jan-19,Development,Screwfix Direct,43.99,Clothing / Uniform & Laundry,Safety boots
29-Jan-19,Development,Screwfix Direct,43.99,Clothing / Uniform & Laundry,Safety boots
03-Jan-19,Development,Rtpi,309.00,Employee Expenses,"2019 Membership Fees MF,CH,JB,RC,AK,MB,LE,RC,SB,MH"
03-Jan-19,Development,Rtpi,618.00,Employee Expenses,"2019 Membership Fees MF,CH,JB,RC,AK,MB,LE,RC,SB,MH"
03-Jan-19,Development,Rtpi,"1,700.00",Employee Expenses,"2019 Membership Fees MF,CH,JB,RC,AK,MB,LE,RC,SB,MH"
30-Jan-19,Development,Fast Key Services Limi,3.56,Equipment / Furniture / Materials,spare key
15-Jan-19,Development,Tesco Stores 2877,38.33,Equipment / Furniture / Materials,kettle and rad
04-Jan-19,Development,The Range,7.49,Fixtures & Fittings,Door bell for post room deliveries
11-Jan-19,Development,Www.Argos.Co.Uk,133.32,Fixtures & Fittings,New microwaves x 2 for Grafton House
09-Jan-19,Development,Mills And Reeve Llp,"2,400.00",Non Contracted_Professional Services,Orwell Quay - Deed of Variation Legal Fees
25-Jan-19,Development,Paypal,17.95,Publications - Purchase,Managing Visitor Safety book
25-Jan-19,Development,Premier Stores,301.75,Publications - Purchase,papers
03-Jan-19,Development,Www.Informa.Com,128.00,Publications - Purchase,SPONS Price book 2019
25-Jan-19,Development,Www.Sackers .Co.Uk,285.60,Removal/Emptying of Waste,bins
30-Jan-19,Development,Amazon.Co.Uk,12.38,Stationery,Cellotape (Enforcement)
08-Jan-19,Development,Suk Retail Ltd,15.95,Stationery,Velcro pads for exhibition boards for the Local Plan
22-Jan-19,Development,Suk Retail Ltd,6.99,Stationery,Duck tape (Public Site notices)
11-Jan-19,Development,Www.Banneruk.Com,15.84,Stationery,whiteboard pens
28-Jan-19,Development,Www.Banneruk.Com,93.25,Stationery,Lam pouches and drawing pins (planning)
14-Jan-19,Development,Sainsburys S/mkt,11.40,Subsistence & Conference/Seminar / Event Expenses,tea/coffee
11-Jan-19,Development,Amzn Mktp Uk,10.48,Telecommunication Costs - Mobiles,Glass mobile phone protector
15-Jan-19,Development,Www.Mobilefun.Co.U,10.15,Telecommunication Costs - Mobiles,Moto E5 tempered glass screen protector
29-Jan-19,Development,Greater Anglia Trains,88.90,Training Expenses,GW training travel 11th Feb
10-Jan-19,Development,Premier Inn44528260,63.33,Training Expenses,GW Safety at Sports Grounds Training Accommodation
09-Jan-19,Development,Www.Labc.Uk.Com,150.00,Training Expenses,GW - Safety at Sports Grounds Part One
09-Jan-19,Development,Www.Labc.Uk.Com,150.00,Training Expenses,GW Safety at Sports Grounds Part Two
11-Jan-19,Finance & Revenues,Hp Inc UK Limited,"1,497.00",Capital Expenditure,Laptops for stock
09-Jan-19,Finance & Revenues,Amzn Mktp Uk,16.66,Computer Consumables and other Minor IT costs,Telephone Cables
25-Jan-19,Finance & Revenues,Amzn Mktp Uk,29.95,Computer Consumables and other Minor IT costs,Display cables
07-Jan-19,Finance & Revenues,Comms Express Ltd,229.98,Computer Consumables and other Minor IT costs,Wi-Fi Access points for IP-City
24-Jan-19,Finance & Revenues,Amzn Mktp Uk,20.98,Computer Equipment - Purchase,Switch cables
14-Jan-19,Finance & Revenues,Hp Inc UK Limited,598.80,Computer Equipment - Purchase,Windows 10 replacement PC
16-Jan-19,Finance & Revenues,Jessops,59.99,Computer Equipment - Purchase,Printer for Dundee House
23-Jan-19,Finance & Revenues,Kenable,107.95,Computer Equipment - Purchase,SRP Cables for Agile re fit room 1B
30-Jan-19,Finance & Revenues,Lucidchart.Com/Charge,283.87,Computer Equipment - Purchase,5 user licences for LucidCharts
31-Jan-19,Finance & Revenues,Microsoft *store,45.82,Computer Equipment - Purchase,Agile projector dongle for room 1B
14-Jan-19,Finance & Revenues,Onedirect,911.68,Computer Equipment - Purchase,ICT Skype Headsets
21-Jan-19,Finance & Revenues,Onedirect,86.31,Computer Equipment - Purchase,Headset Jabra
16-Jan-19,Finance & Revenues,Www.Maytech.Net,159.19,Computer Equipment - Purchase,Quatrix file transfer licenses
16-Jan-19,Finance & Revenues,Www.Maytech.Net,78.41,Computer Equipment - Purchase,Quatrix file transfer licenses
09-Jan-19,Finance & Revenues,Service Fees - Fraedom Pty Ltd,"2,383.15",Computer Software - Maintenance,Fraedom Card Usage Fees 1/12/18-31/12/18 & Annual SupportFee
22-Jan-19,Finance & Revenues,Www.Maytech.Net,85.22,Computer Software - Purchase,File transfer license
04-Jan-19,Finance & Revenues,Acca,246.00,Employee Expenses,ACCA Subscription 
13-Nov-18,Finance & Revenues,Trainline,40.00,Employee Expenses,Return train ticket to London
10-Jan-19,Finance & Revenues,Trainline,48.00,Employee Expenses,Cost of return train ticket to London
03-Jan-19,Finance & Revenues,Www.Aat-Org.Uk,94.00,Employee Expenses,AAT Student Membership 
09-Jan-19,Finance & Revenues,Www.Aat-Org.Uk,151.00,Employee Expenses,AAT Membership 
29-Jan-19,Finance & Revenues,Www.Cimaglobal.Com,115.00,Employee Expenses,CIMA Subscription 
08-Jan-19,Finance & Revenues,"Probrand Ltd.,","1,719.66",Equipment - Contract Maintenance,Desktop refresh
25-Jan-19,Finance & Revenues,Amznmktplace,48.00,Equipment / Furniture / Materials,Windows 10 licence for upgrade
18-Jan-19,Finance & Revenues,County Court,980.00,Legal Services & Fees,Committal Summons
03-Jan-19,Finance & Revenues,Hmcts-Suffolk024,"1,960.00",Legal Services & Fees,Council Tax Committal Summons
08-Jan-19,Finance & Revenues,Ukofficedirect.Co.,53.99,Stationery,Heater for Scan Room
15-Jan-19,Finance & Revenues,Amzn Mktp Uk,8.32,Telecommunication Costs - Business Phones,USB-C adapters
23-Jan-19,Finance & Revenues,Amzn Mktp Uk,17.47,Telecommunication Costs - Business Phones,USB C Adapters
07-Jan-19,Finance & Revenues,Amzn Mktp Uk,3.07,Telecommunication Costs - Mobiles,Protective case for Smartphone
25-Jan-19,Finance & Revenues,Amzn Mktp Uk,3.07,Telecommunication Costs - Mobiles,Protective case for Smartphone
28-Jan-19,Finance & Revenues,Amzn Mktp Uk,3.29,Telecommunication Costs - Mobiles,Protective case for Smartphone
25-Jan-19,Finance & Revenues,Cbt Nuggets,66.47,Training Expenses,ICT Training
12-Nov-18,Finance & Revenues,Ftc Ecom,85.00,Training Expenses,Training course fees
03-Jan-19,Finance & Revenues,Kaplan Financial Ltd,295.83,Training Expenses,CIMA Study Material 
03-Jan-19,Finance & Revenues,Kaplan Financial Ltd,"1,252.67",Training Expenses,AAT Study Material 
04-Jan-19,Finance & Revenues,Kaplan Financial Ltd,90.00,Training Expenses,AAT Exam fees 
04-Jan-19,Finance & Revenues,Kaplan Financial Ltd,66.67,Training Expenses,AAT Exam fees
31-Jan-19,Finance & Revenues,Kaplan Financial Ltd,51.00,Training Expenses,AAT Exam Fee 
31-Jan-19,Finance & Revenues,Kaplan Financial Ltd,36.67,Training Expenses,AAT Exam Fee 
29-Jan-19,Finance & Revenues,Ncs*cima Vue Exam,95.00,Training Expenses,CIMA Exam Fee 
29-Jan-19,Finance & Revenues,Www.Kaplanfoulkslynch.,64.40,Training Expenses,CIMA Study Material 
10-Jan-19,Finance & Revenues,Trainline,17.58,Use Of Public Transport,Rail Tickets 
10-Jan-19,Finance & Revenues,Trainline,58.56,Use Of Public Transport,Train Tickets
10-Jan-19,Finance & Revenues,Trainline,83.39,Use Of Public Transport,Train Tickets 
31-Jan-19,Finance & Revenues,Trainline,61.83,Use Of Public Transport,Cancelled journey - awaiting refund
25-Jan-19,Housing & Community Services,Bunzl,100.61,Cleaning Supplies,cleaning supplies
04-Jan-19,Housing & Community Services,Shirley Shelley Indust,120.00,Cleaning Supplies,specialist clean (bodily fluids) laundry room Reydon House
18-Jan-19,Housing & Community Services,Www.Normedica.Co.Uk,40.15,Cleaning Supplies,Ecolab box of 12 hand cleaner for scheme dispensers
16-Jan-19,Housing & Community Services,Amzn Mktp Uk,17.99,Computer Equipment - Purchase,USB Microphone
28-Jan-19,Housing & Community Services,Lucidchart.Com/Charge,120.00,Computer Equipment - Purchase,Lucidchart Pro Software 
25-Jan-19,Housing & Community Services,Disclosure And Barring,25.00,Employee Expenses,Basic DBS Check 
04-Jan-19,Housing & Community Services,Trainline,97.73,Employee Expenses,Train travel to Nott for NUG
03-Jan-19,Housing & Community Services,Www.Ciob.Org.Uk,300.00,Employee Expenses,CIOB membership 
18-Jan-19,Housing & Community Services,Www.Cipfa.Org.Uk,325.00,Employee Expenses,CIPFA membership 
14-Jan-19,Housing & Community Services,Amazon Prime,7.99,Equipment / Furniture / Materials,Amazon Prime
16-Jan-19,Housing & Community Services,Amazon.Co.Uk,23.70,Equipment / Furniture / Materials,Batteries for Surveyors probes
14-Jan-19,Housing & Community Services,Amzn Mktp Uk,10.82,Equipment / Furniture / Materials,2x Fuji Camera Batteries BSU Camera 
21-Jan-19,Housing & Community Services,Amzn Mktp Uk,378.00,Equipment / Furniture / Materials,Speaker purchased to enable skype facility to be utilised.
21-Jan-19,Housing & Community Services,Amzn Mktp Uk,18.95,Equipment / Furniture / Materials,Binoculars for Surveyors
30-Jan-19,Housing & Community Services,Amzn Mktp Uk,8.25,Equipment / Furniture / Materials,Waste paper Bin Trades shower room 
30-Jan-19,Housing & Community Services,Amzn Mktp Uk,18.07,Equipment / Furniture / Materials,New shower mats x3 Trades Showers 
31-Jan-19,Housing & Community Services,Amzn Mktp Uk,11.00,Equipment / Furniture / Materials,Spanner for MA2
19-Dec-18,Housing & Community Services,Ao Retail Limited,141.67,Equipment / Furniture / Materials,Replacement hob
15-Jan-19,Housing & Community Services,Jollyes The Pet Supers,10.40,Equipment / Furniture / Materials,Dog treats for dog warden vans
04-Jan-19,Housing & Community Services,L & S Engineers Lt,33.91,Equipment / Furniture / Materials,2 stroke oil x 30 100ml bottles now booked in as LF017
30-Jan-19,Housing & Community Services,Sainsburys Petrol,9.57,Equipment / Furniture / Materials,Unleaded Fuel for small plant items
15-Jan-19,Housing & Community Services,Screwfix Direct,16.66,Equipment / Furniture / Materials,Ladder Brackets for Skyvac
15-Jan-19,Housing & Community Services,Shell Ranelagh 390,20.38,Equipment / Furniture / Materials,Fuel for small plant machinery stores
11-Jan-19,Housing & Community Services,Www.Klipspringer.Com,81.00,Equipment / Furniture / Materials,Probe calibration for food team
09-Jan-19,Housing & Community Services,Www.Toolstation.Com,4.57,Equipment / Furniture / Materials,15mm Former for pipe bender
23-Jan-19,Housing & Community Services,Www.Toolstation.Com,17.07,Equipment / Furniture / Materials,Staple Gun & Staples Hireshop (MC175)
25-Jan-19,Housing & Community Services,Www.Toolstation.Com,8.33,Equipment / Furniture / Materials,2x Grout Floats 
18-Jan-19,Housing & Community Services,Www.Ucs.Ac.Uk,65.00,Housing  - other Costs,Tenants' Training event for Safer Online Awareness
18-Jan-19,Housing & Community Services,Www.Ucs.Ac.Uk,65.00,Housing  - other Costs,Tenant training event for Safer Online Awareness
01-Jan-19,Housing & Community Services,Cpw Locksmiths And Securi,80.00,HRA Special Repairs & Maintenance,Holywells Crt Hairdressing room lock/handle stuck repaired
23-Jan-19,Housing & Community Services,County Court,20.00,Legal Services & Fees,gas warrant
10-Jan-19,Housing & Community Services,Possessionclaim.Go,121.00,Legal Services & Fees,Warrant for possession
10-Jan-19,Housing & Community Services,Possessionclaim.Go,325.00,Legal Services & Fees,Possession claim on line
10-Jan-19,Housing & Community Services,Possessionclaim.Go,325.00,Legal Services & Fees,possession claim on line
10-Jan-19,Housing & Community Services,Possessionclaim.Go,325.00,Legal Services & Fees,possession claim on line
10-Jan-19,Housing & Community Services,Possessionclaim.Go,325.00,Legal Services & Fees,possession claim on line
10-Jan-19,Housing & Community Services,Possessionclaim.Go,325.00,Legal Services & Fees,Possession claim on line
10-Jan-19,Housing & Community Services,Possessionclaim.Go,325.00,Legal Services & Fees,possion claim on line
10-Jan-19,Housing & Community Services,Possessionclaim.Go,325.00,Legal Services & Fees,possession claim on line
10-Jan-19,Housing & Community Services,Possessionclaim.Go,325.00,Legal Services & Fees,possession claim on line
14-Jan-19,Housing & Community Services,Possessionclaim.Go,121.00,Legal Services & Fees,warrant for possession
14-Jan-19,Housing & Community Services,Possessionclaim.Go,121.00,Legal Services & Fees,warrant for possession
14-Jan-19,Housing & Community Services,Possessionclaim.Go,121.00,Legal Services & Fees,warrant for possession
17-Jan-19,Housing & Community Services,Possessionclaim.Go,325.00,Legal Services & Fees,Possession claim on line
17-Jan-19,Housing & Community Services,Possessionclaim.Go,325.00,Legal Services & Fees,possession claim on line
17-Jan-19,Housing & Community Services,Possessionclaim.Go,325.00,Legal Services & Fees,possession claim on line
17-Jan-19,Housing & Community Services,Possessionclaim.Go,325.00,Legal Services & Fees,Possession Claim on line
17-Jan-19,Housing & Community Services,Possessionclaim.Go,325.00,Legal Services & Fees,Possession claim on line
17-Jan-19,Housing & Community Services,Possessionclaim.Go,325.00,Legal Services & Fees,Possession claim on line
17-Jan-19,Housing & Community Services,Possessionclaim.Go,325.00,Legal Services & Fees,possession claim on line
17-Jan-19,Housing & Community Services,Possessionclaim.Go,325.00,Legal Services & Fees,Possession claim on line
24-Jan-19,Housing & Community Services,Possessionclaim.Go,121.00,Legal Services & Fees,warrant of possession
24-Jan-19,Housing & Community Services,Possessionclaim.Go,325.00,Legal Services & Fees,Possession claim on line
24-Jan-19,Housing & Community Services,Possessionclaim.Go,325.00,Legal Services & Fees,Possession claim on line
24-Jan-19,Housing & Community Services,Possessionclaim.Go,325.00,Legal Services & Fees,possession claim on line
24-Jan-19,Housing & Community Services,Possessionclaim.Go,325.00,Legal Services & Fees,possession claim on line
24-Jan-19,Housing & Community Services,Possessionclaim.Go,325.00,Legal Services & Fees,possession claim on line
24-Jan-19,Housing & Community Services,Possessionclaim.Go,325.00,Legal Services & Fees,possession claim on line
23-Jan-19,Housing & Community Services,Archant Community Medi,277.56,Licence Fees - Licencing Service,Public notice being put in East Anglian Daily Times
03-Jan-19,Housing & Community Services,Amzn Mktp Uk,11.80,Materials and Supplies - Miscellaneous,Fireman keys
04-Jan-19,Housing & Community Services,Amzn Mktp Uk,2.95,Materials and Supplies - Miscellaneous,Fireman keys
04-Jan-19,Housing & Community Services,Amzn Mktp Uk,8.85,Materials and Supplies - Miscellaneous,Fireman keys
07-Jan-19,Housing & Community Services,Amzn Mktp Uk,5.90,Materials and Supplies - Miscellaneous,Fireman keys
24-Jan-19,Housing & Community Services,Amzn Mktp Uk,16.66,Materials and Supplies - Miscellaneous,3336421 Ventomatic x1
16-Jan-19,Housing & Community Services,Easylocks Ltd,7.17,Materials and Supplies - Miscellaneous,Cam Lock 334337
14-Jan-19,Housing & Community Services,Eoe Co-Op,10.00,Materials and Supplies - Miscellaneous,elec
14-Jan-19,Housing & Community Services,Sainsburys S/mkts,12.00,Materials and Supplies - Miscellaneous,Shower mats for trade showers
15-Jan-19,Housing & Community Services,Screwfix Direct,24.72,Materials and Supplies - Miscellaneous,3345175 Wall Brackets
15-Jan-19,Housing & Community Services,Specialized Security Prod,184.00,Materials and Supplies - Miscellaneous,3339787 Electric Strikes
11-Jan-19,Housing & Community Services,The Metal Store,112.52,Materials and Supplies - Miscellaneous,KEE KLamp and brackets 3332379
18-Jan-19,Housing & Community Services,Wickes Ipswich,44.99,Materials and Supplies - Miscellaneous,Materials for DA
11-Jan-19,Housing & Community Services,Www.Gsproducts.Co.Uk,77.49,Materials and Supplies - Miscellaneous,U Bolts for carpark BI7272
18-Jan-19,Housing & Community Services,Www.Lockerkeys.Biz,8.22,Materials and Supplies - Miscellaneous,Keys for Void Key Safe Box
18-Jan-19,Housing & Community Services,Www.Ridgeons.Co.Uk,29.88,Materials and Supplies - Miscellaneous,Materials dor DAMaterials for DA
18-Jan-19,Housing & Community Services,Www.Ridgeons.Co.Uk,225.64,Materials and Supplies - Miscellaneous,Materials for Void
29-Jan-19,Housing & Community Services,B & Q 1237,27.50,Miscellaneous Expenses,B & Q replacement sack barrow Holywells Court
29-Jan-19,Housing & Community Services,Hudson Media Partnersh,55.00,Miscellaneous Expenses,Ambulance bay do not park sign
10-Jan-19,Housing & Community Services,J2 Efax Plus Service,11.00,Miscellaneous Expenses,Monthly fee for use of secure fax system
17-Jan-19,Housing & Community Services,Www.Staples.Co.Uk,279.00,Miscellaneous Expenses,large shredder for team use
22-Jan-19,Housing & Community Services,Ryder-Davies & Partners,251.27,Non Contracted_Professional Services,Animal Welfare Vet visit
14-Jan-19,Housing & Community Services,Www.Certsure.Com,36.99,Publications - Purchase,18th edition electrical update regulation guidance
11-Jan-19,Housing & Community Services,Home From Home,505.00,Services for Clients,RIA and fees IHMS 14734
21-Jan-19,Housing & Community Services,Nicholas Estates,175.00,Services for Clients,Spend to save for 456 Bramford Road 
21-Jan-19,Housing & Community Services,Nicholas Estates,250.00,Services for Clients,Spend to save for 5 Cemetery Road 
30-Jan-19,Housing & Community Services,Travelodge Gb0000,90.00,Services for Clients,Hotel bed as part of SWEP
30-Jan-19,Housing & Community Services,Travelodge Gb0000,102.00,Services for Clients,Hotel bed as part of SWEP
15-Jan-19,Housing & Community Services,Aldi 776 104,28.65,Specific Campaigns / Projects expenditure,Rough Sleeping Count refreshments
28-Jan-19,Housing & Community Services,Easyhotel Ipswich,1.00,Specific Campaigns / Projects expenditure,Balance hotel room
28-Jan-19,Housing & Community Services,Easyhotel Ipswich,106.99,Specific Campaigns / Projects expenditure,Accommodation of Rough sleeper
31-Jan-19,Housing & Community Services,Amzn Mktp Uk,14.99,Stationery,Desk fan
25-Jan-19,Housing & Community Services,Waitrose Ltd,2.54,Stationery,milk
18-Jan-19,Housing & Community Services,Www.Banneruk.Com,148.10,Stationery,Stationery
15-Jan-19,Housing & Community Services,Amz*dux Ducis Official,-35.96,Telecommunication Costs - Mobiles,Refund for phone cases - wrong ones ordered
15-Jan-19,Housing & Community Services,Amz*dux Ducis Official,-35.96,Telecommunication Costs - Mobiles,Refund for phone cases - wrong ones ordered
04-Jan-19,Housing & Community Services,Amzn Mktp Uk,8.44,Telecommunication Costs - Mobiles,Screen protectors
04-Jan-19,Housing & Community Services,Amzn Mktp Uk,35.96,Telecommunication Costs - Mobiles,Phone cases
04-Jan-19,Housing & Community Services,Amzn Mktp Uk,44.94,Telecommunication Costs - Mobiles,Phone cases
23-Jan-19,Housing & Community Services,Amzn Mktp Uk,13.32,Telecommunication Costs - Mobiles,Phone cases
23-Jan-19,Housing & Community Services,Amzn Mktp Uk,26.62,Telecommunication Costs - Mobiles,Phone cases
31-Jul-18,Housing & Community Services,C I H,60.00,Training Expenses,coaching/training - Be Bold in your career
07-Sep-18,Housing & Community Services,Opp Ltd Sterling Vt,156.00,Training Expenses,Management assessment 
28-Jan-19,Housing & Community Services,Protrainings,26.95,Training Expenses,First Aid Course 
19-Dec-18,Housing & Community Services,Trainline,76.28,Training Expenses,HQN Birming meeting
16-Jan-19,Housing & Community Services,Trainline,304.79,Training Expenses,Three travel cards for TS officers on UC training
23-Jan-19,Housing & Community Services,Trainline,130.00,Training Expenses,AC and LC training course Littering from Vehicles workshop
28-Jan-19,Housing & Community Services,Trainline,43.73,Training Expenses,Train Fare for Staff training
23-Jan-19,Housing & Community Services,Trainline,89.30,Use Of Public Transport,NB H and S Practitioners forum
28-Jan-19,Housing & Community Services,Trainline,99.40,Use Of Public Transport,train tickets Ipswich-London Victoria
30-Jan-19,People & Governance,Facebk *2zf5bks8j2,423.27,Advertising/Publicity,Advertising
30-Jan-19,People & Governance,Facebk *2zf5bks8j2,60.06,Advertising/Publicity,Advertising
23-Jan-19,People & Governance,Facebk *4ctpjkn8j2,413.39,Advertising/Publicity,Advertising
23-Jan-19,People & Governance,Facebk *4ctpjkn8j2,69.94,Advertising/Publicity,Advertising
07-Jan-19,People & Governance,Facebk *6yxtmjn7j2,136.87,Advertising/Publicity,Advertising
16-Jan-19,People & Governance,Facebk *nahgtjn7j2,434.17,Advertising/Publicity,Advertising
16-Jan-19,People & Governance,Facebk *nahgtjn7j2,41.67,Advertising/Publicity,Advertising
16-Jan-19,People & Governance,Facebk *nahgtjn7j2,7.50,Advertising/Publicity,Advertising
15-Jan-19,People & Governance,Helloprint,30.42,Advertising/Publicity,External printing of Women 100 Flyers
29-Jan-19,People & Governance,Istock.Com,100.00,Advertising/Publicity,Stock Images
21-Jan-19,People & Governance,Museum Resource,13.27,Advertising/Publicity,Mammoths for Sweet Shop James!
17-Jan-19,People & Governance,Parcel2go_uk,7.79,Advertising/Publicity,Postage costs for sending Women100 Flyers to Culture Calling
23-Jan-19,People & Governance,Today Magazines Lt,131.10,Advertising/Publicity,Suffolk WI East Women100 ad
28-Jan-19,People & Governance,Ups Ltd,2.00,Advertising/Publicity,Leaflet delivery to Culture Calling of Rock of Ages
28-Jan-19,People & Governance,Ups Ltd,2.00,Advertising/Publicity,Leaflet delivery to Culture Calling of Rock of Ages
30-Jan-19,People & Governance,Ups Ltd,16.99,Advertising/Publicity,Delivery of Rock of Ages leaflets to Culture Calling
30-Jan-19,People & Governance,Ups Ltd,16.99,Advertising/Publicity,Delivery of Rock of Ages leaflets to Culture Calling
04-Jan-19,People & Governance,Spectrum,50.79,Computer Consumables and other Minor IT costs,housing blk/cllrs bcannon inks
04-Jan-19,People & Governance,Spectrum,30.86,Computer Consumables and other Minor IT costs,housing blk/ cllrs bcannon inks
07-Jan-19,People & Governance,Spectrum,20.40,Computer Consumables and other Minor IT costs,HP waste bottle
07-Jan-19,People & Governance,Spectrum,540.00,Computer Consumables and other Minor IT costs,new wide format ink set (5)
10-Jan-19,People & Governance,Spectrum,74.00,Computer Consumables and other Minor IT costs,4x 550XL-stock / 2x 526BK sh/ housing
10-Jan-19,People & Governance,Spectrum,36.36,Computer Consumables and other Minor IT costs,4x 550XL-stock / 2x 526BK sh/ housing
22-Jan-19,People & Governance,Spectrum,159.00,Computer Consumables and other Minor IT costs,HP625A toner-taxi licen/ iPcity-Brother toner/+canon inks -
22-Jan-19,People & Governance,Spectrum,40.65,Computer Consumables and other Minor IT costs,HP625A toner-taxi licen/ iPcity-Brother toner/+canon inks -
22-Jan-19,People & Governance,Spectrum,57.56,Computer Consumables and other Minor IT costs,HP625A toner-taxi licen/ iPcity-Brother toner/+canon inks -
22-Jan-19,People & Governance,Spectrum,22.48,Computer Consumables and other Minor IT costs,HP625A toner-taxi licen/ iPcity-Brother toner/+canon inks -
29-Jan-19,People & Governance,Spectrum,91.12,Computer Consumables and other Minor IT costs,H/wells -718 toner Regent-Epson 6 pk Sh/house 541/551 inks
29-Jan-19,People & Governance,Spectrum,57.80,Computer Consumables and other Minor IT costs,H/wells -718 toner Regent-Epson 6 pk Sh/house 541/551 inks
29-Jan-19,People & Governance,Spectrum,73.94,Computer Consumables and other Minor IT costs,H/wells -718 toner Regent-Epson 6 pk Sh/house 541/551 inks
21-Jan-19,People & Governance,Applegreen Ipswich,33.82,Direct Transport Costs,fuel
18-Jan-19,People & Governance,Bourne Bridge Svs Stn,25.02,Direct Transport Costs,Fuel for Car
29-Jan-19,People & Governance,Shell Ranelagh 390,18.62,Direct Transport Costs,fuel
07-Jan-19,People & Governance,Digital Hearing Care S,20.00,Equipment / Furniture / Materials,Replacement phonak shoe for member of team's hearing support
16-Jan-19,People & Governance,Companies House,13.00,Legal Services & Fees,Companies House costs
16-Jan-19,People & Governance,Companies House,13.00,Legal Services & Fees,Companies House costs
16-Jan-19,People & Governance,Companies House,13.00,Legal Services & Fees,Companies House costs
21-Jan-19,People & Governance,Premier Inn44024445,195.00,Mayoral Related Expenditure,Accommodation for NACO Conference March 2019
10-Jan-19,People & Governance,Trainline,56.57,Mayoral Related Expenditure,Travel to NACO Conference March 2019
21-Jan-19,People & Governance,Trainline,56.78,Mayoral Related Expenditure,Travel to NACO Conference for 
16-Jan-19,People & Governance,Www.Ipswichregent.Com,600.00,Mayoral Related Expenditure,Tester for Mayor's Ball Table 2019
16-Jan-19,People & Governance,Www.Ipswichregent.Com,-600.00,Mayoral Related Expenditure,Refund - tester for Mayor's Ball table 2019
28-Jan-19,People & Governance,Coffee Link Romford,4.50,Miscellaneous Functions & Events,ground coffee for parlour
08-Jan-19,People & Governance,Franklins Ipswich,14.25,Miscellaneous Functions & Events,webbing for chairs to be repaired
07-Jan-19,People & Governance,Marks&spencer Plc,35.50,Miscellaneous Functions & Events,event sandwiches / cake
21-Jan-19,People & Governance,Marks&spencer Plc,11.65,Miscellaneous Functions & Events,cake for mayors civic service
21-Jan-19,People & Governance,Marks&spencer Plc,9.58,Miscellaneous Functions & Events,gluten free cake for civic servive
29-Jan-19,People & Governance,Rose Lane Car Park,5.00,Miscellaneous Functions & Events,Norwich car parking
21-Jan-19,People & Governance,Sainsburys S/mkt,16.90,Miscellaneous Functions & Events,fruit for mayors civic service
28-Jan-19,People & Governance,Sainsburys S/mkt,118.46,Miscellaneous Functions & Events,wine for burns night
28-Jan-19,People & Governance,Sainsburys S/mkt,5.90,Miscellaneous Functions & Events,orange juice for burns night
28-Jan-19,People & Governance,Sainsburys S/mkt,52.12,Miscellaneous Functions & Events,wine for burns night
17-Jan-19,People & Governance,St Edmundsbury Cou,50.00,Miscellaneous Functions & Events,Mayor and Consort at Bury Farewell civic reception
28-Jan-19,People & Governance,Tesco Store 2748,70.83,Miscellaneous Functions & Events,wine Preseco whisky for burns night
17-Jan-19,People & Governance,Victoria S Bakery,30.00,Miscellaneous Functions & Events,cake deposit for mayors civic service
21-Jan-19,People & Governance,Victoria S Bakery,90.00,Miscellaneous Functions & Events,cake for mayors civic service
15-Jan-19,People & Governance,Waitrose Ltd,3.65,Miscellaneous Functions & Events,Scout visit biscuits/milk
28-Jan-19,People & Governance,Waitrose Ltd,3.08,Miscellaneous Functions & Events,Dutch navy ship visit.. milk/biscuits
30-Jan-19,People & Governance,Waitrose Ltd,4.58,Miscellaneous Functions & Events,11th Brownies. milk biscuits squash
28-Jan-19,People & Governance,Wh Smith,17.45,Miscellaneous Functions & Events,HNLMS Groningen Ipswich history book 7 map for their visit
21-Jan-19,People & Governance,Amazon.Co.Uk,16.09,Miscellaneous Stock  - Purchases,A4 Laminate pouches for Print Room
21-Jan-19,People & Governance,Amzn Mktp Uk,22.50,Miscellaneous Stock  - Purchases,Poster tubing for print room
18-Jan-19,People & Governance,Www.Ovendenpapers.,168.15,Miscellaneous Stock  - Purchases,Large Format Paper for print room
10-Jan-19,People & Governance,Www.Paper.Co.Uk,199.64,Miscellaneous Stock  - Purchases,Required paper for the print room
31-Jan-19,People & Governance,Www.Paper.Co.Uk,448.12,Miscellaneous Stock  - Purchases,Paper supply for the print room
03-Jan-19,People & Governance,Www.Iwaste.Co.Uk,199.06,Printing Costs,Cost for WEEE removal of the planning plotter
08-Jan-19,People & Governance,Amazon.Co.Uk,180.00,Specific Campaigns / Projects expenditure,Retirement gift
04-Jan-19,People & Governance,Highstreet Vocuhers,279.25,Specific Campaigns / Projects expenditure,retirement giftcard 
31-Jan-19,People & Governance,Www.Voucherexpress.Co.,411.75,Specific Campaigns / Projects expenditure,Retirement giftcard 
14-Jan-19,People & Governance,Mailchimp,363.35,Subscriptions - Service Related,MailChimp Subscription
28-Jan-19,People & Governance,Mailchimp,192.98,Subscriptions - Service Related,Mailchimp
17-Jan-19,People & Governance,"Sprout Social, Inc",802.78,Subscriptions - Service Related,Social Media Management
31-Jan-19,People & Governance,The Inst Of Int Audito,280.01,Training Expenses,IIA Exam Fee February 2019
08-Jan-19,People & Governance,Greater Anglia Trains,181.80,Use Of Public Transport,Train fare to IIA revision workshop for Auditor.
16-Jan-19,People & Governance,Trainline,35.85,Use Of Public Transport,Press visit to Avenue Q
